Cogmind - Beta 14 @@@ ROGUE MODE // 2025.03.05 @ 23:45:57 Player: w0rldd3str0y3r Result: Destroyed by YI-UF0 with YI-UF0's Doublenader Performance ------------- Evolutions (0) 0 Regions Visited (2) 400 Robots Destroyed (36) 180 Value Destroyed (569) 569 Prototype IDs (0) 0 Alien Tech Used (0) 0 Bonus (2) 2 TOTAL SCORE: 1151 Bonus ------- High Alert Combat Kills 2 Cogmind --------- Core Integrity 0/250 Matter 132/300 Energy 249/250 System Corruption 0% Temperature Cool (0) Movement Rolling (145) Ox3 Location -10/Mines Parts ------- > --- POWER (1) -------- Ion Engine > --- PROPULSION (2) --- Aluminum Leg Compact Wheel > --- UTILITY (2) ------ High-capacity Storage Unit Improved Terrain Scanner > --- WEAPON (2) ------- Beam Cannon Grenade Launcher > --- INVENTORY (20) --- Ion Engine Ion Engine Light Ion Engine Aluminum Leg Wheel Hover Unit Hover Unit Heat Sink Heat Sink Large Storage Unit Propulsion Shielding Utility Shielding EM Pulse Gun EM Pulse Gun Medium Laser Medium Laser Light Assault Rifle Grenade Launcher Welding Torch Peak State ------------ > --- POWER ------------ Ion Engine > --- PROPULSION ------- Aluminum Leg Compact Wheel > --- UTILITY ---------- High-capacity Storage Unit Improved Terrain Scanner > --- WEAPON ----------- Beam Cannon Grenade Launcher > --- INVENTORY -------- Ion Engine Ion Engine Light Ion Engine Aluminum Leg Wheel Hover Unit Hover Unit Heat Sink Heat Sink Large Storage Unit Propulsion Shielding Utility Shielding EM Pulse Gun EM Pulse Gun Medium Laser Medium Laser Light Assault Rifle Grenade Launcher Welding Torch [Rating: 10] Favorites ----------- Power Ion Engine Engine Ion Engine Propulsion Aluminum Leg Treads Light Treads Leg Aluminum Leg Wheel Compact Wheel Utility High-capacity Storage Unit Device Heat Sink Storage High-capacity Storage Unit Weapon Beam Cannon Energy Gun Small Laser Energy Cannon Beam Cannon Ballistic Gun Light Assault Rifle Launcher Grenade Launcher Build | -11 -10 -10 ------- Run | Yrd Mat Min Slots Evolved . | . . . Power . | . . . Propulsion . | . . . Utility . | . . . Weapon . | . . . Parts Attached 28 | 7 17 4 Power 4 | 1 2 1 Engine 4 | 1 2 1 Core . | . . . Reactor . | . . . Propulsion 9 | 2 6 1 Treads 1 | . 1 . Leg 5 | . 4 1 Wheel 3 | 2 1 . Hover . | . . . Flight . | . . . Utility 6 | 2 3 1 Device 3 | 1 1 1 Storage 3 | 1 2 . Processor . | . . . Hackware . | . . . Protection . | . . . Artifact . | . . . Weapon 9 | 2 6 1 Energy Gun 4 | . 4 . Energy Cannon 1 | . 1 . Ballistic Gun 3 | 2 1 . Ballistic Cannon . | . . . Launcher 1 | . . 1 Special Weapon . | . . . Impact Weapon . | . . . Slashing Weapon . | . . . Piercing Weapon . | . . . Special Melee Weapon . | . . . Unidentified Prototypes . | . . . Parts Lost 8 | . 6 2 Power 2 | . 1 1 Propulsion 3 | . 2 1 Utility 1 | . 1 . Weapon 2 | . 2 . Highest Loss Streak 3 | . 3 1 To Critical Strikes . | . . . Average Slot Usage (%) 98 | . 97 99 Engine 13 | . 13 14 Treads 3 | . 1 6 Leg 13 | . 17 7 Wheel 9 | . 7 14 Device 13 | . 13 14 Storage 14 | . 14 14 Energy Gun 9 | . 15 . Energy Cannon 9 | . 6 14 Ballistic Gun 3 | . 6 . Launcher 4 | . . 13 Peak Build Rating 10 | 7 9 10 Average Rating 8 | 5 7 9 On Entrance 5 | . 7 9 Naked Turns . | . . . Heaviest Build 52 | 14 51 52 Greatest Support 20 | 20 20 16 Greatest Overweight (x) 15 | . 15 3 Average Overweight (x) 2 | . 1 3 Largest Inventory Capacity 20 | 8 20 20 Average Capacity 18 | 6 18 20 Most Carried 20 | 3 20 20 Average Carried 14 | 1 12 19 Final Capacity 20 | 8 20 20 Final Carried 20 | 3 20 19 Class Distribution -------------------- 72% | Scavenger-Mutant 27% | Mutant Dominant Class ---------------- Scavenger-Mutant | -10/Materials Scavenger-Mutant | -10/Mines Resources | -11 -10 -10 ----------- Run | Yrd Mat Min Matter Collected 549 | 191 286 72 Remotely . | . . . Salvage Created 784 | 54 674 56 Parts 68 | 5 44 19 Haulers Intercepted 2 | . 2 . Recyclers Shooed 1 | . 1 . Parts Field Recycled . | . . . Retrieved Matter . | . . . Parts Self-Destructed . | . . . Prevented . | . . . Kills | -11 -10 -10 ------- Run | Yrd Mat Min Combat Hostiles Destroyed 24 | . 12 12 Guns 10 | . 10 . Cannons 1 | . 1 . AOE 12 | . . 12 Classes Destroyed 8 | 1 7 . Worker 1 | . 1 . Builder 4 | . 2 2 Tunneler 2 | 2 . . Hauler 2 | . 2 . Recycler 1 | . 1 . Watcher 2 | . 2 . Swarmer 15 | . 3 12 Grunt 9 | . 9 . Best Kill Streak 5 | 2 3 5 Combat Bots Only 3 | . 2 3 Max Kills in Single Turn 4 | 1 1 4 Gunslinging . | . . . Exploded 3 | . . 3 Melee . | . . . Uniques/NPCs Destroyed . | . . . Combat | -11 -10 -10 -------- Run | Yrd Mat Min Hostile Shots Fired 135 | . 94 41 Missed 34 | . 21 13 Damage Taken 1173 | . 848 325 Core 252 | . 190 62 Absorbed by Shields . | . . . Core Remaining (%) 100 | 100 . . Volleys Fired 88 | 3 66 19 Largest 2 | 2 2 2 Hottest 110 | 40 110 90 Shots Fired 157 | 6 131 20 Gun 120 | 6 114 . Cannon 18 | . 17 1 Launcher 19 | . . 19 Special . | . . . Kinetic 47 | 6 41 . Thermal 91 | . 90 1 Explosive 19 | . . 19 Electromagnetic . | . . . Robot Hit Streak 9 | 3 9 1 Robot Miss Streak 3 | 2 3 3 Penetration Max . | . . . Secondary Targets . | . . . Shots Hit Robots 93 | 4 88 1 Core Hits 54 | 4 33 17 Critical Kills . | . . . Critical Parts Destroyed . | . . . Critical Strikes . | . . . Melee Attacks . | . . . Impact . | . . . Slashing . | . . . Piercing . | . . . Sneak Attacks . | . . . Combat Hostiles . | . . . Follow-up Attacks . | . . . Damage Inflicted 1904 | 37 1087 780 Guns 848 | 37 811 . Cannons 265 | . 265 . Explosions 780 | . . 780 Melee . | . . . Ramming 11 | . 11 . Kinetic 333 | 37 296 . Thermal 780 | . 780 . Explosive 780 | . . 780 Electromagnetic . | . . . Impact . | . . . Slashing . | . . . Piercing . | . . . Highest Corruption . | . . . Average Corruption . | . . . Corruption Purged . | . . . Corruption Blocked . | . . . Overload Shots . | . . . Overflow Damage 15 | . . 15 Projectiles . | . . . Explosions 15 | . . 15 Melee . | . . . Knockbacks . | . . . Impact . | . . . Kinetic . | . . . Secondary . | . . . Self-Inflicted Damage 72 | . . 72 Shots 2 | . . 2 Rammed . | . . . Targets Rammed 5 | . 5 . Kicked 5 | . 5 . Crushed . | . . . Highest Temperature 120 | . 120 . Average Temperature 32 | . 32 . Received Heat Transfer 411 | . 411 . Siege Activations . | . . . Robots Corrupted . | . . . Combat Hostiles . | . . . Parts Fried . | . . . Impact Corruptions . | . . . Robots Melted 1 | . 1 . Combat Hostiles 1 | . 1 . Parts Melted 7 | . 7 . Heat Transferred 1717 | . 1717 . Parts Sabotaged . | . . . Parts Stolen . | . . . Parts Stripped . | . . . Power Chain Reactions . | . . . Alert | -11 -10 -10 ------- Run | Yrd Mat Min Peak Influence 429 | 10 366 429 Initial 70 | . 6 70 Average 199 | 1 176 260 Maximum Alert Level 2 | . 1 2 Low Security (%) 40 | 100 48 19 Level 1 53 | . 51 63 Level 2 6 | . . 16 Level 3 . | . . . Level 4 . | . . . Level 5 . | . . . High Security . | . . . Max Security . | . . . Squads Dispatched 1 | . 1 . Investigation 1 | . 1 . Extermination . | . . . Reinforcement . | . . . Assault . | . . . Garrison . | . . . Intercept . | . . . Searches Triggered . | . . . Construction Impeded . | . . . Haulers Reinforced . | . . . Active Scanning Responses . | . . . Cargo Convoy Interrupts . | . . . Stealth | -11 -10 -10 --------- Run | Yrd Mat Min Distress Signals 2 | . 1 1 Communications Jammed . | . . . Distress Signals . | . . . Times Spotted 37 | . 27 10 Peak Tracking Total 5 | . 5 3 Tactical Retreats 7 | . 7 . Traps | -11 -10 -10 ------- Run | Yrd Mat Min Traps Triggered 1 | . 1 . Indirectly . | . . . Trap Hack Attempts . | . . . Triggered . | . . . Disarmed . | . . . Reprogrammed . | . . . Reused . | . . . Traps Extracted . | . . . Installed . | . . . Triggered . | . . . Machines | -11 -10 -10 ---------- Run | Yrd Mat Min Machines Disabled 1 | . . 1 Max in Single Turn 1 | . . 1 Machines Repaired . | . . . Machines Dismantled . | . . . Machines Sabotaged . | . . . Overloaded Fab Kills . | . . . Hacking | -11 -10 -10 --------- Run | Yrd Mat Min Machines Accessed 1 | . 1 . Terminals 1 | . 1 . Fabricators . | . . . Repair Stations . | . . . Recycling Units . | . . . Scanalyzers . | . . . Garrison Access . | . . . Total Hacks 2 | . 2 . Successful . | . . . Failed 2 | . 2 . Catastrophic . | . . . Database Lockouts . | . . . Manual 2 | . 2 . Terminals 2 | . 2 . Fabricators . | . . . Repair Stations . | . . . Recycling Units . | . . . Scanalyzers . | . . . Garrison Access . | . . . Terminal Hacks . | . . . Fabricator Hacks . | . . . Repair Station Hacks . | . . . Recycling Unit Hacks . | . . . Scanalyzer . | . . . Garrison Access Hacks . | . . . Unauthorized Hacks . | . . . Terminals . | . . . Fabricators . | . . . Repair Stations . | . . . Recycling Units . | . . . Scanalyzers . | . . . Garrison Access . | . . . Data Cores Recovered . | . . . Used . | . . . Hacking Detections 1 | . 1 . Full Trace Events . | . . . Feedback Events . | . . . Feedback Blocked . | . . . Robot Schematics Acquired . | . . . Robots Built . | . . . Authchips . | . . . Time . | . . . Total Robot Build Rating . | . . . Part Schematics Acquired . | . . . Parts Built . | . . . Authchips . | . . . Time . | . . . Total Part Build Rating . | . . . Parts Repaired . | . . . Time . | . . . Parts Recycled . | . . . Recycled Matter . | . . . Retrieved Matter . | . . . Retrieved Components . | . . . Parts Scanalyzed . | . . . Part Schematics Acquired . | . . . Parts Damaged . | . . . Bothacking | -11 -10 -10 ------------ Run | Yrd Mat Min Used RIF Installer . | . . . Robots Hacked . | . . . Non-combat . | . . . Combat . | . . . Robot Hacks Applied . | . . . Relay Couplers Released . | . . . Fabnet Peak Effective % . | . . . Robots Rewired . | . . . Allies Hacked . | . . . Hacks Repelled . | . . . Allies | -11 -10 -10 -------- Run | Yrd Mat Min Total Allies . | . . . Largest Group . | . . . Highest-Rated Group . | . . . Highest-Rated Ally . | . . . Total Orders . | . . . Ally Attacks . | . . . Total Damage . | . . . Kills . | . . . Allies Corrupted . | . . . Allies Melted . | . . . Intel | -11 -10 -10 ------- Run | Yrd Mat Min Robot Analysis Total . | . . . Derelict Logs Recovered 1 | . . 1 Drone Launches . | . . . Drone Recoveries . | . . . Exploration | -11 -10 -10 ------------- Run | Yrd Mat Min Turns Passed 1766 | 69 1061 636 Spaces Moved 843 | 59 404 380 Core 5 | 1 4 . Treads . | . . . Legs 182 | . 182 . Wheels 656 | 58 218 380 Hover . | . . . Flight . | . . . Fastest Speed 50 | 50 80 145 Average Speed 158 | 79 182 145 Slowest Speed 800 | 80 800 145 Overloaded Moves . | . . . Propulsion Burnouts . | . . . Robots Hopped . | . . . Cave-ins Triggered . | . . . Exploration Rate (%) 42 | 3 58 65 Regions Visited 2 Branch Regions 1 Pre-discovered Areas . | . . . Known Exits Taken . | . . . Unknown Exits Taken 2 | 1 1 . Scrap Searched 1 | . . 1 Spaces Dug . | . . . Terrain Destroyed 122 | . . 122 Melee . | . . . Projectile . | . . . AOE 122 | . . 122 Terrain Rammed . | . . . Walls Destroyed . | . . . Machines Disabled . | . . . Actions | -11 -10 -10 --------- Run | Yrd Mat Min Total 1112 | 71 595 446 Wait 97 | . 59 38 Move 841 | 58 403 380 Hop . | . . . Pick Up 33 | 3 27 3 Fast Attach 12 | 7 5 . Attach 8 | . 6 2 Detach 5 | . 5 . Swap 8 | . 6 2 Drop 15 | . 13 2 Fire 88 | 3 66 19 Melee . | . . . Ram . | . . . Kick 5 | . 5 . Crush . | . . . Escape Stasis . | . . . Rewire . | . . . Trap . | . . . Miscellaneous . | . . . Route ------- -11/Scrapyard -10/Materials (discovered 2 exits: [*Mat] / [*Min]) -10/Mines (discovered 1 exit: [*Mat]) History --------- Turn | Location | Event 15 | -11/Scrapyard | Discovered new exit (range 14) 70 | -11/Scrapyard | Entered Materials 310 | -10/Materials | Build established: Mutant 349 | -10/Materials | Lost 3 parts (2n1w) 465 | -10/Materials | Core integrity fell below 50% 600 | -10/Materials | Discovered new exit (range 8) 790 | -10/Materials | Build established: Scavenger-Mutant 793 | -10/Materials | Discovered new exit (range 9) 1131 | -10/Materials | Entered Mines 1148 | -10/Mines | YI-UF0 nonchalantly dropped a Grenade Launcher on the ground 1198 | -10/Mines | Assembled infested the area 1249 | -10/Mines | Core integrity fell below 20% 1392 | -10/Mines | Learned location of 1 exit from Materials 1411 | -10/Mines | Discovered new exit (range 11) 1767 | -10/Mines | Destroyed by YI-UF0 with YI-UF0's Doublenader Last Messages --------------- 01343_ S-10 Pest destroyed. 01362_ K-01 Serf collects debris. 01367_ The unstable cave ceiling collapses. 01377_ K-01 Serf collects debris. 01392_ Acquired derelict log, extracted data. Data stored: Materials exits (x1). 01411_ EXIT=FOUND 01416_ Lgt. Treads destroyed. 01418_ Destroyed Lgt. Ion Engine. 01421_ S-10 Pest destroyed. 01428_ The unstable cave ceiling collapses. 01448_ Acquired Lgt. Ion Engine. 01454_ The unstable cave ceiling collapses. 01520_ Acquired 6 matter. 01537_ K-01 Serf collects debris. 01561_ U-05 Engineer lays Concrete. 01562_ U-05 Engineer builds a Wall. 01567_ U-05 Engineer lays Concrete. 01595_ U-05 Engineer builds a Wall. 01755_ The unstable cave ceiling collapses. Map ----- +----------------------------------------------------+ | ???????????????????????????## #???? #??? | | ????????????????????????????## #### #??? | | ????????????????????#????????## #??? | | ?????????????##????? ##???????# #??? | | ?????????????# ????? #??????# #######??? | | ?????????????# ????? ##????# #????????? | | ?????????????? ???? #????# #????????? | | ??????????????# ????? #????# ##???????? | | ??????????????# ???? #????# ##??????? | | ??????????????# ????# #???## ##?????? | | ????????????### ???# ? ## #?????? | | ????????????# ???# ? # #?????? | | ????????????### ??# # ##?????? | | ????????????# * # ## g ##?####?? | | ????? = = ##?## ##? | | ????????????## # # ##?## #? | | ?????????????# # ## ##??# #? | | ???????????#?## ### ## # #???# #?? | | ??????????#???#???##??# #???## ##?? | | ?????????????????????## ?????# ##??? | | ###????????????????#??# # #????## #???? | | " #???????????#???????# ##??## ##???? | | #???###?????????????# #! #??# #????? | | #??## ##???????????# % #??# #????? | | % #?## ##??????#???# ! # #?#?## ##???? | | #?# ###???????### @ #???## ##??? | | #?# #????????# r ##?#?## ##?? | | ##??# ##???????# #???## #?? | | ##????# #?#??##### #####????# #?? | | #?????# #?????# #???????## #?? | | #????## ####### #####???####?# #?? | | ????## #??????## ### ##? | | ??### ################ #? | | ??# # #??????# #? | | ### #####??# ###### ### #? | | # ## ## ##?# #???## #?## ##? | | # # ### ##### #??## #?? | | # ## ## ## #?###### ##?? | | # ## [! #???????###??? | | # ####### ## | ##???????????? | | # # ## ########## ##????????????? | | ### ## ##????????## ##?????????????? | | ######## #?????#?#?######??????????????? | | ## ## #?????????#???????????????????? | | #?????????????????????????????? | | #????????#????????????????????? | | #?????????????????????????????? | | ##?????????????????????????????? | | ####??????????????????????????????? | | ##?????????????????????????????????? | +----------------------------------------------------+ Best States ------------- Heat Dissipation 35 Energy Generation 10 Energy Capacity 250 Matter Stores 300 Matter Capacity 300 Sight Range 16 Terrain Scan Range 16 Terrain Scan Density 10 Evasion (%) 44 Item Schematics ----------------- None Robot Schematics ------------------ None Fabricated ------------ Nothing Alien Tech Used ----------------- None Achievements -------------- None Challenges ------------ None Game ------ Seed FortressFireDetector Manual? 0 Play Time 00:11:17 Cumulative 48.9 hours Start 2025.03.05 @ 23:35:06 End 2025.03.05 @ 23:45:57 Sessions 1 Manual Loads 0 Difficulty Rogue Special Mode None Game No. 59 Rogue 59 Adventurer 0 Explorer 0 Win Type - Total 0 Types 0/0/0/0/0/0/0/0/0 Lore% 32 Gallery% 39 Achievement% 31 Wizard Run 0 Options --------- Layout 0 ASCII 0 Keyboard 1 Movement Numpad Keybinds 0 Fullscreen 1 Font 18/SmallcapsGlow Map View 76x50 Zoom Use 0% Tactical HUD 1 Map Filters NONE Filters NONE Steam 1 RUN: d08697b0-13c1-40d4-b5e1-4fa15a8f4b1e